bitfinex-derivatives/quotes_SOLF0:USTF0_20260226
["timestamp","ask_amount","ask_price","bid_price","bid_amount"]
[1772069382349,48.52771109,88.671,88.607,10.1558]
[1772069383143,48.52563434,88.646,88.56,8.72491928]
[1772069383544,48.52563434,88.633,88.574,10.1596]
[1772069383747,8.72491928,88.75,88.625,157.9466]
[1772069383944,8.72491928,88.75,88.66,8.72491928]
[1772069384149,8.72491928,88.75,88.671,10.1485]
[1772069385654,10.1409,88.738,88.671,10.1485]
[1772069385856,39.82120096,88.737,88.671,10.1485]
[1772069386853,10.1418,88.73,88.671,10.1485]
[1772069387054,8.72491928,88.75,88.64,8.72491928]
[1772069387055,39.82512158,88.729,88.66,10.1497]
[1772069387455,39.82512158,88.727,88.64,8.72491928]
[1772069389056,39.82512158,88.727,88.66,8.72491928]
[1772069389452,39.82512158,88.727,88.628,157.9425]
[1772069389453,8.72491928,88.77,88.68,8.72491928]
[1772069390357,10.1384,88.76,88.696,10.1455]
[1772069390851,8.72491928,88.75,88.66,8.72491928]
[1772069391556,30.98865334,88.749,88.66,8.72491928]
[1772069392056,30.98865334,88.73,88.663,10.1494]
[1772069394157,8.72491928,88.75,88.663,10.1494]
[1772069394158,30.97878719,88.726,88.663,10.1494]
[1772069394362,30.97878719,88.726,88.652,10.1506]
[1772069394759,30.9782043,88.724,88.641,6.0]
[1772069395064,30.9782043,88.724,88.642,6.0]
[1772069395953,30.9782043,88.724,88.671,10.1484]
[1772069398759,30.9782043,88.724,88.643,6.0]
[1772069399063,30.9782043,88.724,88.661,10.1496]
[1772069400266,31.04393663,88.718,88.651,10.1508]
[1772069401064,31.04393663,88.716,88.651,10.1508]
[1772069401464,31.04393663,88.716,88.596,11.19691136]
[1772069401465,31.04393663,88.716,88.587,20.3162]
[1772069401663,31.04731928,88.679,88.58,8.71345219]
[1772069401859,10.1486,88.671,88.607,10.1558]
[1772069402067,31.04731928,88.67,88.58,8.71345219]
[1772069402762,8.71345219,88.68,88.58,8.71345219]
[1772069402763,31.04731928,88.668,88.58,8.71345219]
[1772069403264,31.04731928,88.659,88.56,8.71345219]
[1772069403464,31.04731928,88.659,88.58,8.71345219]
[1772069405065,31.04731928,88.659,88.604,10.1562]
[1772069405461,31.04731928,88.659,88.588,10.1579]
[1772069405862,31.05892112,88.639,88.547,10.1626]
[1772069406068,31.05892112,88.62,88.54,8.71345219]
[1772069406366,31.05892112,88.62,88.54,10.67724061]
[1772069406965,31.05892112,88.62,88.545,10.1628]
[1772069407761,31.05892112,88.62,88.554,10.1619]
[1772069408265,31.05892112,88.62,88.553,10.162]
[1772069408567,31.05892112,88.62,88.553,16.162]
[1772069410268,31.23624891,88.618,88.544,10.1631]
[1772069410468,31.23624891,88.618,88.521,6.0]
[1772069410663,31.23624891,88.618,88.52,10.67787247]
[1772069410867,31.23624891,88.618,88.52,8.71345219]
[1772069411674,31.25026168,88.607,88.521,6.0]
[1772069411867,31.25026168,88.607,88.51,1.96471973]
[1772069411868,31.25026168,88.607,88.54,8.71345219]
[1772069412271,31.25026168,88.607,88.553,10.162]
[1772069412973,31.25026168,88.607,88.52,8.71345219]
[1772069413178,31.25026168,88.607,88.521,6.0]
[1772069413474,31.25026168,88.607,88.552,10.1621]
[1772069414175,31.25026168,88.607,88.561,10.1611]
[1772069414381,26.13251353,88.599,88.51,8.71345219]
[1772069414668,26.13251353,88.599,88.467,20.7375356]
[1772069414669,26.13251353,88.599,88.5,1.96466982]
[1772069414873,8.71345219,88.6,88.5,1.96466982]
[1772069414874,26.13251353,88.587,88.5,1.96466982]
[1772069415070,26.13251353,88.587,88.49,8.71345219]
[1772069415273,26.13251353,88.587,88.49,10.6786712]
[1772069415470,26.13251353,88.582,88.522,10.1656]
[1772069415871,26.13251353,88.582,88.491,6.0]
[1772069416173,26.13251353,88.582,88.492,6.0]
[1772069416569,26.14728578,88.579,88.512,10.1666]
[1772069417170,26.14728578,88.576,88.512,10.1666]
[1772069417673,26.14728578,88.576,88.491,6.0]
[1772069417674,26.14728578,88.576,88.52,10.1657]
[1772069419468,26.14728578,88.576,88.53,10.1646]
[1772069421070,26.14728578,88.576,88.492,6.0]
[1772069421371,8.71345219,88.64,88.53,8.71345219]
[1772069421777,8.71345219,88.62,88.51,8.71345219]
[1772069423171,16.76036676,88.608,88.51,8.71345219]
[1772069424275,16.72537923,88.595,88.51,8.71345219]
[1772069425076,16.72537923,88.583,88.521,10.1656]
[1772069426177,16.72300004,88.582,88.529,10.1647]
[1772069426378,16.72300004,88.582,88.53,6.0]
[1772069426679,16.72300004,88.582,88.536,10.1639]
[1772069429072,11.29,88.647,88.49,1.96521901]
[1772069429073,16.71977022,88.58,88.49,1.96521901]
[1772069429377,16.71977022,88.58,88.49,10.6786712]
[1772069429574,16.71977022,88.58,88.535,10.164]
[1772069429975,16.71977022,88.58,88.49,10.6786712]
[1772069430281,8.71345219,88.6,88.49,10.6786712]
[1772069430282,13.71981647,88.578,88.525,10.1652]
[1772069430674,13.71981647,88.574,88.516,10.1662]
[1772069431182,13.71981647,88.574,88.49,10.6786712]
[1772069433981,13.71981647,88.574,88.526,10.165]
[1772069434683,13.71981647,88.574,88.51,8.71345219]
[1772069435880,13.71981647,88.574,88.529,10.1648]
[1772069438579,13.71981647,88.574,88.521,10.1656]
[1772069438783,10.1598,88.573,88.49,1.96521901]
[1772069438985,10.1598,88.573,88.42,27.8248384]
[1772069438986,7.58282178,88.559,88.46,332.76274259]
[1772069439285,7.58282178,88.559,88.45,8.71345219]
[1772069439686,7.58435739,88.537,88.467,10.1719]
[1772069440082,7.58435739,88.513,88.445,10.1744]
[1772069440390,7.58435739,88.513,88.43,8.71345219]
[1772069440987,7.58435739,88.51,88.444,10.1745]
[1772069441586,7.67944503,88.508,88.444,10.1745]
[1772069441992,7.67944503,88.506,88.444,10.1745]
[1772069442398,7.67944503,88.506,88.453,10.1735]
[1772069444591,7.67944503,88.506,88.443,10.1746]
[1772069444994,7.67944503,88.506,88.42,8.71345219]
[1772069445191,7.67944503,88.506,88.431,10.176]
[1772069445396,7.53507228,88.495,88.431,10.176]
[1772069446098,8.71345219,88.52,88.431,10.176]
[1772069446099,7.54479815,88.491,88.431,10.176]
[1772069446897,20.3247,88.551,88.42,8.71345219]
[1772069446898,7.54479815,88.511,88.42,8.71345219]
[1772069447094,7.54479815,88.511,88.44,8.71345219]
[1772069447803,8.71345219,88.56,88.44,8.71345219]
[1772069447804,7.56564624,88.559,88.44,8.71345219]
[1772069448202,7.56564624,88.538,88.473,10.1712]
[1772069448404,7.56564624,88.538,88.44,8.71345219]
[1772069448904,7.56564624,88.524,88.44,8.71345219]
[1772069449406,7.56564624,88.524,88.47,10.1715]
[1772069451799,7.60151291,88.541,88.46,8.71345219]
[1772069452005,7.60151291,88.558,88.48,8.71345219]
[1772069452395,7.60151291,88.558,88.495,10.1686]
[1772069453808,7.60151291,88.558,88.504,10.1676]
[1772069454100,7.60151291,88.558,88.48,8.71345219]
[1772069455503,7.79275999,88.575,88.5,8.71345219]
[1772069456308,7.79275999,88.574,88.48,8.71345219]
[1772069456908,7.79275999,88.574,88.5,8.71345219]
[1772069457303,7.79275999,88.574,88.518,10.166]
[1772069457506,7.79275999,88.574,88.5,8.71345219]
[1772069457803,7.9540507,88.572,88.504,10.1676]
[1772069458010,7.9540507,88.572,88.5,8.71345219]
[1772069459110,7.9540507,88.572,88.52,10.1657]
[1772069459705,7.96535992,88.564,88.45,8.71345219]
[1772069459909,7.96535992,88.549,88.45,8.71345219]
[1772069460809,7.96535992,88.525,88.45,8.71345219]
[1772069461316,7.96535992,88.525,88.478,10.1706]
[1772069462311,7.96535992,88.525,88.468,10.1717]
[1772069462915,8.24640585,88.522,88.468,10.1717]
[1772069463513,8.39468834,88.582,88.48,8.74942926]
[1772069464214,8.39468834,88.553,88.48,8.74942926]
[1772069464817,8.39468834,88.553,88.509,10.1671]
[1772069465017,8.39468834,88.553,88.48,8.74942926]
[1772069465619,8.39468834,88.553,88.506,10.1673]
[1772069466017,8.39468834,88.553,88.514,10.1665]
[1772069466322,8.39468834,88.553,88.48,8.74942926]
[1772069467623,8.34316837,88.54,88.479,10.1705]
[1772069467826,8.34316837,88.569,88.46,8.74942926]
[1772069468021,8.34316837,88.569,88.48,8.74942926]
[1772069468220,8.34316837,88.553,88.495,10.1686]
[1772069468622,8.34316837,88.553,88.48,8.74942926]
[1772069468822,8.34316837,88.551,88.497,10.1684]
[1772069469322,8.74942926,88.57,88.477,10.1707]
[1772069469323,8.34316837,88.533,88.477,10.1707]
[1772069469521,8.34316837,88.533,88.46,8.74942926]
[1772069469721,8.34316837,88.533,88.44,8.74942926]
[1772069469922,8.33950052,88.505,88.42,8.74942926]
[1772069470516,8.33950052,88.492,88.425,10.1767]
[1772069470721,8.33950052,88.492,88.42,8.74942926]
[1772069471322,8.33950052,88.491,88.428,10.1763]
[1772069471522,8.33950052,88.491,88.42,8.74942926]
[1772069471724,8.34727974,88.51,88.42,8.74942926]
[1772069472719,8.34727974,88.508,88.454,10.1734]
[1772069473527,8.25989868,88.506,88.445,10.1744]
[1772069476333,8.2752439,88.503,88.435,10.1756]
[1772069477034,8.2752439,88.498,88.435,10.1756]
[1772069478329,8.27488986,88.487,88.425,10.1767]
[1772069478526,8.27488986,88.487,88.42,8.74942926]
[1772069480031,8.36200406,88.529,88.42,8.74942926]
[1772069480426,8.38954982,88.549,88.405,33.79]
[1772069480427,8.36200406,88.52,88.416,20.84578578]
[1772069480632,8.36200406,88.52,88.44,8.74942926]
[1772069481330,8.36200406,88.549,88.44,8.74942926]
[1772069481540,8.36200406,88.538,88.482,10.1702]
[1772069481925,8.35761537,88.536,88.473,10.1712]
[1772069482531,8.35761537,88.533,88.473,10.1712]
[1772069483027,8.35761537,88.533,88.46,8.74942926]
[1772069483838,8.35761537,88.533,88.489,10.1693]
[1772069484437,8.35761537,88.533,88.479,10.1704]
[1772069484633,8.35761537,88.533,88.46,8.74942926]
[1772069484931,8.3460258,88.549,88.46,8.74942926]
[1772069485527,8.33985347,88.547,88.484,10.1699]
[1772069485728,8.33985347,88.547,88.46,8.74942926]
[1772069486234,10.1639,88.537,88.475,10.171]
[1772069486439,8.33985347,88.536,88.44,8.74942926]
[1772069486840,8.33989145,88.521,88.457,10.1731]
[1772069487043,8.33989145,88.521,88.44,8.74942926]
[1772069487436,8.33989145,88.51,88.454,10.1733]
[1772069489341,8.33989145,88.51,88.463,10.1723]
[1772069489541,8.33989145,88.51,88.44,8.74942926]
[1772069490942,8.33989145,88.51,88.454,10.1733]
[1772069491235,8.33989145,88.51,88.44,8.74942926]
[1772069492141,8.3512533,88.531,88.46,8.74942926]
[1772069492339,8.3512533,88.548,88.48,8.74942926]
[1772069494036,8.3512533,88.548,88.443,54.63578578]
[1772069494037,8.3512533,88.548,88.46,8.74942926]
[1772069494837,8.34709351,88.537,88.473,10.1712]
[1772069495731,10.1655,88.523,88.473,10.1712]
[1772069495936,8.74942926,88.56,88.465,10.1721]
[1772069495937,8.35767921,88.522,88.465,10.1721]
[1772069496536,8.35767921,88.519,88.465,10.1721]
[1772069497738,8.35767921,88.519,88.472,10.1712]
[1772069498145,8.35767921,88.519,88.44,8.74942926]
[1772069499049,8.3614412,88.518,88.464,10.1722]
[1772069499249,8.3614412,88.518,88.44,8.74942926]
[1772069499449,8.3614412,88.518,88.46,8.74942926]
[1772069501052,8.3614412,88.518,88.471,10.1714]
[1772069503655,8.3614412,88.518,88.438,20.84578578]
[1772069503952,8.3614412,88.518,88.437,20.84578578]
[1772069504251,8.3614412,88.518,88.42,8.74942926]
[1772069504252,8.3614412,88.518,88.422,20.84578578]
[1772069504653,8.35538151,88.497,88.425,20.84578578]
[1772069505157,8.35538151,88.497,88.43,20.84578578]
[1772069506460,8.35538151,88.497,88.425,20.84578578]
[1772069506655,8.35538151,88.497,88.423,20.84578578]
[1772069507255,8.36479642,88.495,88.415,20.84578578]
[1772069507657,10.1705,88.48,88.431,10.176]
[1772069507857,8.36355587,88.479,88.415,20.84578578]
[1772069508055,8.36355587,88.479,88.4,8.74942926]
[1772069508658,8.36355587,88.478,88.4,8.74942926]
[1772069509954,8.34871613,88.476,88.421,10.1771]
[1772069510957,8.34871613,88.476,88.4,8.74942926]
[1772069510958,8.34871613,88.476,88.43,10.1762]
[1772069512162,8.34871613,88.476,88.42,10.1773]
[1772069513360,8.74942926,88.49,88.39,8.74942926]
[1772069513569,10.46222626,88.527,88.39,8.74942926]
[1772069513570,8.34911529,88.489,88.41,8.74942926]
[1772069514851,8.34697893,88.48,88.41,8.74942926]
[1772069515051,8.34697893,88.48,88.397,19.89881047]
[1772069515258,8.34697893,88.477,88.422,10.1771]
[1772069516262,8.34697893,88.477,88.429,10.1762]
[1772069516764,8.33271323,88.468,88.397,19.89881047]
[1772069517858,8.33271323,88.468,88.416,10.1777]
[1772069519260,8.74942926,88.49,88.397,19.89881047]
[1772069519261,8.33170547,88.464,88.408,10.1787]
[1772069519560,8.33170547,88.464,88.397,19.89881047]
[1772069519863,8.33280384,88.482,88.397,19.89881047]
[1772069520070,8.33280384,88.482,88.41,8.74942926]
[1772069520567,8.33280384,88.482,88.403,20.84578578]
[1772069521066,8.33280384,88.482,88.41,8.74942926]
[1772069521365,8.33280384,88.482,88.398,20.84578578]
[1772069521561,8.33280384,88.482,88.397,19.89881047]
[1772069523059,8.76059196,88.49,88.405,10.179]
[1772069523060,8.33516312,88.457,88.405,10.179]
[1772069523268,8.33516312,88.457,88.397,19.89881047]
[1772069523569,8.33516312,88.437,88.397,19.89881047]
[1772069523957,8.34825322,88.428,88.397,19.89881047]
[1772069524357,8.34825322,88.428,88.348,1.96808089]
[1772069524358,8.34825322,88.428,88.361,3.83914789]
[1772069524671,3.64409142,88.418,88.361,14.02314789]
[1772069525066,10.1778,88.416,88.365,10.1836]
[1772069525263,3.64409142,88.418,88.365,10.1836]
[1772069525970,10.178,88.414,88.365,10.1836]
[1772069526363,20.3443,88.466,88.329,1.96852064]
[1772069526364,3.64409142,88.459,88.368,3.83914789]
[1772069526564,3.64409142,88.445,88.368,3.83914789]
[1772069527371,3.64409142,88.44,88.377,10.1822]
[1772069527665,3.64409142,88.439,88.385,3.83914789]
[1772069527968,3.64409142,88.459,88.385,3.83914789]
[1772069528370,10.1742,88.447,88.395,10.1801]
[1772069528869,10.1742,88.447,88.346,33.79]
[1772069528870,10.1712,88.474,88.419,10.1774]
[1772069529167,10.1712,88.474,88.401,3.83914789]
[1772069529168,3.64409142,88.489,88.401,3.83914789]
[1772069529365,10.1728,88.46,88.41,10.1785]
[1772069529667,3.64409142,88.468,88.401,3.83914789]
[1772069530059,3.64409142,88.468,88.401,14.01854789]
[1772069530665,3.64409142,88.468,88.409,10.1786]
[1772069530865,3.64409142,88.468,88.401,3.83914789]
[1772069531168,3.64409142,88.468,88.419,10.1774]
[1772069531769,13.81589142,88.468,88.411,10.1783]
[1772069532372,10.1721,88.466,88.411,10.1783]
[1772069532772,3.64409142,88.486,88.419,3.83914789]
[1772069533976,10.1711,88.475,88.421,10.1772]
[1772069534574,3.64409142,88.472,88.411,10.1783]
[1772069534875,3.64409142,88.472,88.402,3.83914789]
[1772069535176,3.64409142,88.466,88.414,3.83914789]
[1772069537177,3.64409142,88.466,88.415,10.1778]
[1772069537377,3.64409142,88.466,88.42,3.27113683]
[1772069537773,3.64409142,88.487,88.44,3.27113683]
[1772069538275,11.43731818,88.552,88.385,33.79]
[1772069538276,3.27113683,88.51,88.451,3.83914789]
[1772069538471,486.0235616,88.525,88.461,3.83914789]
[1772069538671,3.27113683,88.52,88.461,3.83914789]
[1772069538866,486.0235616,88.525,88.47,3.27113683]
[1772069538867,3.64409142,88.524,88.47,3.27113683]
[1772069539277,3.64409142,88.524,88.461,3.83914789]
[1772069539974,10.1656,88.522,88.465,10.1721]
[1772069541272,3.64409142,88.521,88.45,8.75258759]
[1772069541476,3.64409142,88.5,88.441,3.83914789]
[1772069542978,3.64409142,88.5,88.443,14.01374789]
[1772069543378,3.64409142,88.489,88.432,10.1759]
[1772069543574,3.64409142,88.489,88.39,27.81197114]
[1772069543575,3.64409142,88.489,88.406,3.83914789]
[1772069544375,18.76838641,88.524,88.411,3.83914789]
[1772069544376,3.64409142,88.509,88.411,3.83914789]
[1772069544774,3.64409142,88.509,88.421,3.83914789]
[1772069545076,8.75258759,88.51,88.421,3.83914789]
[1772069545077,3.64409142,88.497,88.421,3.83914789]
[1772069545575,3.64409142,88.493,88.443,10.1746]
[1772069547179,3.66377521,88.51,88.443,3.54485098]
[1772069547975,3.66377521,88.509,88.443,3.54485098]
[1772069548672,3.66377521,88.506,88.443,3.54485098]
[1772069548872,3.66377521,88.506,88.425,3.54485098]
[1772069549272,3.66377521,88.483,88.425,3.54485098]
[1772069549677,13.83407521,88.481,88.426,10.1766]
[1772069549981,3.66377521,88.48,88.426,10.1766]
[1772069550684,10.1707,88.478,88.425,3.54485098]
[1772069550879,3.66377521,88.477,88.415,10.1779]
[1772069551185,3.66377521,88.477,88.4,83.31180138]
[1772069551186,3.66377521,88.477,88.408,3.54485098]
[1772069552084,10.1729,88.459,88.408,3.54485098]
[1772069555981,10.1717,88.469,88.411,3.7337449]
[1772069556688,10.1726,88.461,88.411,3.7337449]
[1772069557077,3.66377521,88.477,88.413,3.7337449]
[1772069557679,10.1716,88.47,88.416,3.7337449]
[1772069558486,3.66377521,88.477,88.416,3.7337449]
[1772069559286,3.59641374,88.469,88.416,3.7337449]
[1772069560094,8.25423452,88.505,88.4,56.98491153]
[1772069560095,3.59641374,88.459,88.4,56.98491153]
[1772069560391,3.59641374,88.447,88.4,53.71342801]
[1772069560589,3.59641374,88.439,88.4,53.71342801]
[1772069566291,10.175,88.44,88.4,53.71342801]
[1772069567992,10.1759,88.433,88.4,53.71342801]
[1772069572295,6.86789726,88.45,88.4,53.71342801]
[1772069572497,10.1768,88.425,88.4,53.71342801]
[1772069573600,3.59641374,88.449,88.4,53.71342801]
[1772069574596,10.1757,88.434,88.4,53.71342801]
[1772069574795,3.59641374,88.449,88.4,53.71342801]
[1772069575403,10.1766,88.427,88.4,53.71342801]
[1772069578296,10.1774,88.42,88.383,3.7337449]
[1772069580592,10.1774,88.42,88.351,20.84578578]
[1772069580593,3.69987268,88.422,88.37,3.27148352]
[1772069580797,3.69987268,88.422,88.323,27.81197114]
[1772069580798,3.69987268,88.399,88.341,3.69215894]
[1772069580994,3.69987268,88.379,88.336,53.56530128]
[1772069581300,3.69987268,88.369,88.31,6.97167049]
[1772069581501,3.69987268,88.369,88.31,3.69215894]
[1772069581502,3.27951155,88.36,88.31,3.69215894]
[1772069581699,10.1855,88.349,88.31,3.69215894]
[1772069581900,3.69987268,88.369,88.31,6.97167049]
[1772069582200,3.69987268,88.369,88.31,3.69215894]
[1772069583398,8.23152301,88.411,88.254,33.93]
[1772069583399,3.27951155,88.34,88.275,3.69215894]
[1772069583701,3.27951155,88.3,88.251,3.69215894]
[1772069584002,10.1913,88.299,88.251,3.69215894]
[1772069584304,481.62570995,88.35,88.219,20.84578578]
[1772069584305,3.27951155,88.32,88.261,3.69215894]
[1772069584507,3.27951155,88.32,88.189,179.1359]
[1772069584508,10.1933,88.282,88.23,3.27951155]
[1772069584805,158.4568,88.341,88.183,52.25291974]
[1772069584806,3.69987268,88.319,88.27,3.27951155]
[1772069585103,3.69987268,88.319,88.233,10.1988]
[1772069585303,3.69987268,88.319,88.161,27.81197114]
[1772069585304,3.69987268,88.309,88.25,3.27951155]
[1772069586399,10.1916,88.296,88.25,3.27951155]
[1772069587301,3.69987268,88.306,88.25,3.27951155]
[1772069587700,3.69987268,88.339,88.271,3.69215894]
[1772069587905,3.69987268,88.339,88.28,3.27951155]
[1772069588606,10.1884,88.324,88.271,3.69215894]
[1772069588802,3.69987268,88.339,88.28,3.27951155]
[1772069589005,158.3144,88.421,88.3,3.27951155]
[1772069589006,3.69987268,88.356,88.3,3.27951155]
[1772069589206,3.69987268,88.356,88.29,3.69215894]
[1772069589503,485.32558263,88.35,88.29,3.69215894]
[1772069590200,3.69987268,88.348,88.29,3.69215894]
[1772069590610,3.69987268,88.348,88.27,3.69215894]
[1772069591701,3.69987268,88.344,88.272,3.69215894]
[1772069592503,3.69987268,88.342,88.272,3.69215894]
[1772069592897,3.69987268,88.324,88.24,8.78628339]
[1772069593104,3.69987268,88.324,88.241,3.69215894]
[1772069593301,3.69987268,88.319,88.241,3.69215894]
[1772069593705,3.69987268,88.31,88.228,10.1994]
[1772069595005,3.69987268,88.297,88.228,10.1994]
[1772069595200,3.69987268,88.297,88.238,10.1982]
[1772069595406,3.69987268,88.297,88.224,3.69215894]
[1772069596207,3.69987268,88.294,88.228,10.1994]
[1772069596405,3.69987268,88.294,88.229,3.69215894]
[1772069597206,3.69987268,88.294,88.234,10.1987]
[1772069598309,3.69987268,88.281,88.211,3.69215894]
[1772069598903,8.78628339,88.3,88.212,3.69215894]
[1772069599102,3.69987268,88.3,88.212,3.69215894]
[1772069599303,3.69987268,88.29,88.208,3.69215894]
[1772069599510,10.193,88.284,88.221,3.69215894]
[1772069599704,3.69987268,88.29,88.221,3.69215894]
[1772069600217,3.69987268,88.289,88.221,3.69215894]
[1772069602108,10.1937,88.279,88.223,3.69215894]
[1772069604410,10.1937,88.279,88.224,10.1999]
[1772069604616,10.1937,88.279,88.225,3.69215894]
[1772069605819,3.69987268,88.289,88.178,1.97185573]
[1772069605820,3.69987268,88.289,88.236,3.79014231]
[1772069606820,10.1925,88.288,88.236,3.79014231]
[1772069607020,13.97893213,88.288,88.236,3.79014231]
[1772069607814,10.1935,88.28,88.236,3.79014231]
[1772069608820,3.78643213,88.288,88.236,3.79014231]
[1772069609323,3.78643213,88.303,88.237,3.79014231]
[1772069609714,33.93,88.381,88.204,20.4044]
[1772069609715,3.78643213,88.289,88.204,3.79014231]
[1772069610313,10.196,88.259,88.209,10.2016]
[1772069612020,10.1948,88.269,88.218,3.79014231]
[1772069612324,3.78643213,88.278,88.218,3.79014231]
[1772069612525,10.195,88.267,88.223,10.1999]
[1772069612820,10.195,88.267,88.218,3.79014231]
[1772069613017,3.75594555,88.264,88.218,3.79014231]
[1772069613215,3.75594555,88.264,88.202,3.7285007]
[1772069614114,10.1954,88.263,88.215,3.7285007]
[1772069614319,3.75594555,88.264,88.215,3.7285007]
[1772069615034,3.75594555,88.283,88.215,3.7285007]
[1772069615228,3.75594555,88.298,88.221,3.7285007]
[1772069615429,10.1924,88.29,88.234,10.1987]
[1772069615724,10.1924,88.29,88.235,3.7285007]
[1772069616124,10.1934,88.281,88.235,3.7285007]
[1772069617329,10.1943,88.273,88.235,3.7285007]
[1772069617931,3.75594555,88.309,88.237,3.7285007]
[1772069618831,3.75594555,88.309,88.241,3.7285007]
[1772069619530,3.75594555,88.339,88.264,3.7285007]
[1772069619926,3.75594555,88.339,88.24,8.78628339]
[1772069619927,10.1892,88.317,88.265,3.7285007]
[1772069620530,3.75594555,88.323,88.221,3.7285007]
[1772069620737,3.75594555,88.319,88.221,3.7285007]
[1772069620931,10.1947,88.27,88.221,3.7285007]
[1772069622029,10.1951,88.266,88.207,30.27092639]
[1772069622225,8.78628339,88.3,88.207,30.27092639]
[1772069622226,3.75594555,88.265,88.207,30.27092639]
[1772069622630,10.1956,88.262,88.207,30.27092639]
[1772069623531,10.1965,88.254,88.207,20.06912639]
[1772069623730,3.75594555,88.253,88.207,20.06912639]
[1772069624332,10.1967,88.252,88.207,20.06912639]
[1772069624826,10.1977,88.243,88.207,20.06912639]
[1772069625235,3.75594555,88.253,88.207,20.06912639]
[1772069625838,10.1976,88.245,88.207,20.06912639]
[1772069626435,3.75594555,88.253,88.207,20.06912639]
[1772069627734,10.1968,88.252,88.207,20.06912639]
[1772069628034,3.75594555,88.251,88.207,20.06912639]
[1772069628236,3.75594555,88.237,88.176,10.2054]
[1772069628437,3.75594555,88.237,88.176,3.7285007]
[1772069628636,3.75594555,88.237,88.158,20.84578578]
[1772069628637,3.75594555,88.237,88.158,3.7285007]
[1772069629136,3.75594555,88.235,88.17,3.7285007]
[1772069629339,3.75594555,88.234,88.17,3.7285007]
[1772069629738,3.75594555,88.221,88.17,3.7285007]
[1772069630436,10.2018,88.208,88.17,3.7285007]
[1772069630840,10.2018,88.208,88.153,10.2081]
[1772069631036,3.75594555,88.238,88.163,3.7285007]
[1772069632042,3.75594555,88.236,88.163,3.7285007]
[1772069632443,3.75594555,88.254,88.163,3.7285007]
[1772069632643,3.75594555,88.254,88.187,3.7285007]
[1772069633138,10.1979,88.242,88.187,3.7285007]
[1772069634044,10.1988,88.234,88.187,3.7285007]
[1772069634238,3.75594555,88.239,88.17,3.7285007]
[1772069634745,10.199,88.233,88.172,3.7285007]
[1772069635145,3.75594555,88.239,88.172,3.7285007]
[1772069636451,10.1962,88.256,88.201,3.6687184]
[1772069636739,10.46283079,88.292,88.152,54.77578578]
[1772069636740,3.64351348,88.255,88.181,3.6687184]
[1772069636944,3.64351348,88.255,88.191,3.6687184]
[1772069636945,13.84001348,88.255,88.191,3.6687184]
[1772069637745,10.1967,88.252,88.192,10.2036]
[1772069638139,10.1967,88.252,88.192,13.8723184]
[1772069638340,10.1967,88.252,88.196,3.6687184]
[1772069638544,3.64351348,88.254,88.196,3.6687184]
[1772069638942,3.64351348,88.254,88.197,10.203]
[1772069639540,3.64351348,88.254,88.206,10.202]
[1772069640036,13.84001348,88.254,88.206,10.202]
[1772069640341,3.64351348,88.253,88.206,10.202]
[1772069640645,10.1969,88.251,88.198,10.2029]
[1772069640847,3.64351348,88.25,88.197,3.6687184]
[1772069641837,8.25950809,88.296,88.218,3.6687184]
[1772069641838,10.1937,88.279,88.218,3.6687184]
[1772069642047,3.64351348,88.288,88.218,3.6687184]
[1772069642649,3.64351348,88.287,88.241,10.1979]
[1772069643350,3.64351348,88.304,88.233,3.6687184]
[1772069643544,3.64351348,88.321,88.233,3.6687184]
[1772069644043,10.1891,88.318,88.257,3.6687184]
[1772069644242,3.64351348,88.321,88.257,3.6687184]
[1772069644845,40.17340692,88.311,88.257,3.6687184]
[1772069645043,3.64351348,88.31,88.257,3.6687184]
[1772069645842,302.95512081,88.322,88.257,3.6687184]
[1772069646750,302.95512081,88.322,88.269,3.6687184]
[1772069647154,481.62570995,88.35,88.219,54.331]
[1772069647155,3.64351348,88.349,88.271,3.6687184]
[1772069647745,10.186,88.345,88.284,3.6687184]
[1772069647953,3.64351348,88.349,88.284,3.6687184]
[1772069648545,3.64351348,88.349,88.299,10.1912]
[1772069648755,3.64351348,88.349,88.284,3.6687184]
[1772069649953,10.1858,88.347,88.29,10.1922]
[1772069650156,10.1858,88.347,88.284,3.6687184]
[1772069650157,3.64351348,88.349,88.291,3.6687184]
[1772069651959,10.1856,88.348,88.292,3.6687184]
[1772069652155,481.62570995,88.35,88.292,3.6687184]
[1772069652564,481.62570995,88.35,88.315,10.1894]
[1772069652757,426.62543716,88.35,88.316,3.6687184]
[1772069652951,426.62543716,88.35,88.3,3.6687184]
[1772069653155,3.64351348,88.349,88.3,3.6687184]
[1772069654958,13.82911348,88.349,88.3,3.6687184]
[1772069655365,426.62543716,88.35,88.3,3.6687184]
[1772069655566,409.59423716,88.35,88.324,10.1883]
[1772069655966,409.59423716,88.35,88.299,3.6687184]